[Event "*** SCC Grand Prix: Titled Tuesday Blitz"]
[Site "Chess.com"]
[Date "2020.10.06"]
[Round "5"]
[White "arminmusovic"]
[Black "Tooweak2slow03"]
[Result "0-1"]
[WhiteElo "2524"]
[BlackElo "2789"]
[TimeControl "180+1"]
[EndTime "10:55:57 PDT"]
[Termination "Tooweak2slow03 won by resignation"]

1. a3 {[%clk 0:03:00.9]} 1... e6 {[%clk 0:03:00.9]} 2. Nc3 {[%clk 0:03:00.7]}
2... b6 {[%clk 0:02:57.3]} 3. e4 {[%clk 0:03:01.6]} 3... Bb7 {[%clk 0:02:57.4]}
4. d4 {[%clk 0:03:02.3]} 4... Nf6 {[%clk 0:02:56.9]} 5. Bg5 {[%clk 0:03:02.3]}
5... Be7 {[%clk 0:02:56.7]} 6. e5 {[%clk 0:03:02.8]} 6... Ne4 {[%clk 0:02:56.1]}
7. Bxe7 {[%clk 0:03:03.7]} 7... Qxe7 {[%clk 0:02:56.8]} 8. Nf3 {[%clk
0:03:04.1]} 8... Nxc3 {[%clk 0:02:56.2]} 9. bxc3 {[%clk 0:03:05]} 9... d6 {[%clk
0:02:55.9]} 10. exd6 {[%clk 0:03:05.6]} 10... Qxd6 {[%clk 0:02:55.9]} 11. Bb5+
{[%clk 0:03:06.2]} 11... c6 {[%clk 0:02:54.7]} 12. Bd3 {[%clk 0:03:06.1]} 12...
Nd7 {[%clk 0:02:54.7]} 13. O-O {[%clk 0:03:04.7]} 13... O-O-O {[%clk 0:02:53.9]}
14. a4 {[%clk 0:03:02.3]} 14... c5 {[%clk 0:02:52.7]} 15. a5 {[%clk 0:03:02.5]}
15... e5 {[%clk 0:02:46.3]} 16. axb6 {[%clk 0:02:56.3]} 16... axb6 {[%clk
0:02:47.2]} 17. Ba6 {[%clk 0:02:44.5]} 17... e4 {[%clk 0:02:37.8]} 18. Nd2
{[%clk 0:02:28.3]} 18... Bxa6 {[%clk 0:02:28.1]} 19. Rxa6 {[%clk 0:02:24.8]}
19... Kb7 {[%clk 0:02:28.2]} 20. Nxe4 {[%clk 0:01:58.8]} 20... Qc6 {[%clk
0:02:19.8]} 21. Qf3 {[%clk 0:01:53.4]} 21... Ne5 {[%clk 0:01:43.9]} 22. Qe2
{[%clk 0:01:15.9]} 22... cxd4 {[%clk 0:01:39.6]} 23. Rb1 {[%clk 0:01:11.4]}
23... Rhe8 {[%clk 0:01:35.4]} 24. Rbxb6+ {[%clk 0:00:55.1]} 24... Qxb6 {[%clk
0:01:36.3]} 25. Rxb6+ {[%clk 0:00:56]} 25... Kxb6 {[%clk 0:01:37.2]} 26. cxd4
{[%clk 0:00:44.1]} 26... Nc6 {[%clk 0:01:34.6]} 27. d5 {[%clk 0:00:41.7]} 27...
Rxd5 {[%clk 0:01:34.3]} 28. f3 {[%clk 0:00:42.1]} 28... Kc7 {[%clk 0:01:32.4]}
29. Qe1 {[%clk 0:00:31.3]} 29... Ree5 {[%clk 0:01:29.4]} 30. Qg3 {[%clk
0:00:24.4]} 30... Rd1+ {[%clk 0:01:26.7]} 31. Kf2 {[%clk 0:00:23.7]} 31... f5
{[%clk 0:01:27.6]} 32. Qxg7+ {[%clk 0:00:20.1]} 32... Rd7 {[%clk 0:01:25.4]} 33.
Qh8 {[%clk 0:00:12.5]} 33... fxe4 {[%clk 0:01:24.4]} 34. f4 {[%clk 0:00:12.8]}
34... e3+ {[%clk 0:01:20.4]} 35. Ke1 {[%clk 0:00:13.2]} 35... Ree7 {[%clk
0:01:15.5]} 36. g3 {[%clk 0:00:10.8]} 36... e2 {[%clk 0:01:15.8]} 37. Qa1 {[%clk
0:00:11]} 37... Rd1+ {[%clk 0:01:14.7]} 38. Qxd1 {[%clk 0:00:11.5]} 38...
exd1=Q+ {[%clk 0:01:15.6]} 39. Kxd1 {[%clk 0:00:12.4]} 39... Nd4 {[%clk
0:01:15.4]} 40. c4 {[%clk 0:00:13.2]} 40... Nf3 {[%clk 0:01:15.9]} 0-1

[Event "*** SCC Grand Prix: Titled Tuesday Blitz"]
[Site "Chess.com"]
[Date "2020.10.06"]
[Round "5"]
[White "Oglob71"]
[Black "ClydeHillKid"]
[Result "1-0"]
[WhiteElo "2502"]
[BlackElo "2330"]
[TimeControl "180+1"]
[EndTime "10:56:06 PDT"]
[Termination "Oglob71 won by resignation"]

1. d4 {[%clk 0:03:00.9]} 1... d5 {[%clk 0:02:57.5]} 2. Nf3 {[%clk 0:03:00]} 2...
Nf6 {[%clk 0:02:46.9]} 3. e3 {[%clk 0:02:59.5]} 3... e6 {[%clk 0:02:42.1]} 4.
Bd3 {[%clk 0:02:58.4]} 4... Bd6 {[%clk 0:02:20.3]} 5. Nbd2 {[%clk 0:02:57.4]}
5... O-O {[%clk 0:02:19.1]} 6. O-O {[%clk 0:02:56.6]} 6... Nbd7 {[%clk
0:02:15.9]} 7. e4 {[%clk 0:02:56.8]} 7... dxe4 {[%clk 0:02:13.4]} 8. Nxe4 {[%clk
0:02:56.3]} 8... Nxe4 {[%clk 0:02:12.5]} 9. Bxe4 {[%clk 0:02:56.9]} 9... Nf6
{[%clk 0:02:12.7]} 10. Bd3 {[%clk 0:02:57]} 10... b6 {[%clk 0:02:12.7]} 11. Bg5
{[%clk 0:02:55.3]} 11... Bb7 {[%clk 0:02:12.6]} 12. Qe2 {[%clk 0:02:55.2]} 12...
Qe7 {[%clk 0:02:04.5]} 13. Rfe1 {[%clk 0:02:54.4]} 13... Rfd8 {[%clk 0:02:01.4]}
14. c3 {[%clk 0:02:49.5]} 14... Rac8 {[%clk 0:01:59.7]} 15. Rad1 {[%clk
0:02:48.1]} 15... c5 {[%clk 0:01:57.5]} 16. dxc5 {[%clk 0:02:48.2]} 16... Bxc5
{[%clk 0:01:57.1]} 17. Ne5 {[%clk 0:02:44.9]} 17... h6 {[%clk 0:01:48.1]} 18.
Bh4 {[%clk 0:02:44.3]} 18... Ba8 {[%clk 0:01:40.1]} 19. Ba6 {[%clk 0:02:34.3]}
19... Rxd1 {[%clk 0:01:34.5]} 20. Rxd1 {[%clk 0:02:34.2]} 20... Rd8 {[%clk
0:01:33.9]} 21. Kf1 {[%clk 0:02:26.2]} 21... g5 {[%clk 0:01:30.1]} 22. Bg3
{[%clk 0:02:25.5]} 22... Ne4 {[%clk 0:01:25.6]} 23. Bd3 {[%clk 0:02:19.5]} 23...
Qb7 {[%clk 0:01:04.1]} 24. Nf3 {[%clk 0:02:06.7]} 24... Nxg3+ {[%clk 0:00:41.2]}
25. hxg3 {[%clk 0:02:06]} 25... a5 {[%clk 0:00:25.7]} 26. Ne1 {[%clk 0:02:05.2]}
26... Rd6 {[%clk 0:00:20.4]} 27. Bc2 {[%clk 0:02:05.2]} 27... Qd7 {[%clk
0:00:17.3]} 28. Rxd6 {[%clk 0:02:05.5]} 28... Qxd6 {[%clk 0:00:18.2]} 29. Qd3
{[%clk 0:02:04]} 29... Qxd3+ {[%clk 0:00:17.9]} 30. Nxd3 {[%clk 0:02:03.5]}
30... Bd5 {[%clk 0:00:18.8]} 31. Nxc5 {[%clk 0:02:03.2]} 31... bxc5 {[%clk
0:00:19.7]} 32. b3 {[%clk 0:02:02.5]} 32... Kf8 {[%clk 0:00:19.4]} 33. f3 {[%clk
0:01:59.2]} 33... Ke7 {[%clk 0:00:19.4]} 34. Kf2 {[%clk 0:01:59.2]} 34... Kd6
{[%clk 0:00:19]} 35. Bd3 {[%clk 0:01:58.8]} 35... f5 {[%clk 0:00:17.8]} 36. f4
{[%clk 0:01:55.8]} 36... e5 {[%clk 0:00:16.8]} 37. Bxf5 {[%clk 0:01:51]} 37...
exf4 {[%clk 0:00:14.8]} 38. gxf4 {[%clk 0:01:51.6]} 38... gxf4 {[%clk
0:00:15.7]} 39. g3 {[%clk 0:01:48.2]} 39... Ke5 {[%clk 0:00:14.9]} 40. Bc2
{[%clk 0:01:47]} 40... fxg3+ {[%clk 0:00:12.7]} 41. Kxg3 {[%clk 0:01:46.8]}
41... Be4 {[%clk 0:00:08.2]} 42. Bd1 {[%clk 0:01:46.9]} 42... Bb1 {[%clk
0:00:05.9]} 43. a3 {[%clk 0:01:47.3]} 43... Ke4 {[%clk 0:00:06.1]} 44. Be2
{[%clk 0:01:44.9]} 44... Bd3 {[%clk 0:00:04.4]} 45. Bh5 {[%clk 0:01:41.6]} 45...
Bc2 {[%clk 0:00:04.5]} 46. Bg6+ {[%clk 0:01:41.5]} 46... Ke3 {[%clk 0:00:04.1]}
47. Bxc2 {[%clk 0:01:42]} 47... Kd2 {[%clk 0:00:05]} 48. Bg6 {[%clk 0:01:41.9]}
48... Kxc3 {[%clk 0:00:05.3]} 49. Bf7 {[%clk 0:01:42.4]} 49... Kb2 {[%clk
0:00:04.5]} 50. a4 {[%clk 0:01:42.4]} 50... Kc3 {[%clk 0:00:04.8]} 51. Bc4
{[%clk 0:01:42.7]} 51... Kb4 {[%clk 0:00:04.6]} 52. Kh4 {[%clk 0:01:43.3]} 52...
Kc3 {[%clk 0:00:04.8]} 53. Kh5 {[%clk 0:01:44]} 1-0

[Event "*** SCC Grand Prix: Titled Tuesday Blitz"]
[Site "Chess.com"]
[Date "2020.10.06"]
[Round "5"]
[White "CM_rui"]
[Black "Lupul_Cenusiu"]
[Result "0-1"]
[WhiteElo "2375"]
[BlackElo "2520"]
[TimeControl "180+1"]
[EndTime "10:56:08 PDT"]
[Termination "Lupul_Cenusiu won on time"]

1. e4 {[%clk 0:03:00.9]} 1... c5 {[%clk 0:02:59.3]} 2. Nf3 {[%clk 0:03:01.1]}
2... e6 {[%clk 0:02:59.4]} 3. c4 {[%clk 0:03:01.1]} 3... d6 {[%clk 0:02:58.8]}
4. d4 {[%clk 0:03:00.6]} 4... cxd4 {[%clk 0:02:58.7]} 5. Nxd4 {[%clk 0:03:01.5]}
5... Nf6 {[%clk 0:02:58.7]} 6. Nc3 {[%clk 0:03:01.7]} 6... Be7 {[%clk
0:02:59.3]} 7. Be2 {[%clk 0:03:01.8]} 7... O-O {[%clk 0:02:59.2]} 8. Be3 {[%clk
0:03:02.4]} 8... a6 {[%clk 0:02:59]} 9. O-O {[%clk 0:03:02.9]} 9... Qc7 {[%clk
0:02:56.1]} 10. Rc1 {[%clk 0:03:02.8]} 10... Nbd7 {[%clk 0:02:56.3]} 11. Qd2
{[%clk 0:03:00.5]} 11... Nc5 {[%clk 0:02:55.2]} 12. f3 {[%clk 0:03:00]} 12... b6
{[%clk 0:02:55.3]} 13. Rfd1 {[%clk 0:02:59.3]} 13... Bb7 {[%clk 0:02:55.4]} 14.
Bf1 {[%clk 0:02:56.3]} 14... Rac8 {[%clk 0:02:54.3]} 15. Qf2 {[%clk 0:02:50.5]}
15... Qb8 {[%clk 0:02:52.3]} 16. b4 {[%clk 0:02:39]} 16... Ncd7 {[%clk
0:02:51.9]} 17. a3 {[%clk 0:02:24.9]} 17... Rfe8 {[%clk 0:02:49.9]} 18. Na4
{[%clk 0:02:23.6]} 18... Bd8 {[%clk 0:02:49.9]} 19. h3 {[%clk 0:02:14.6]} 19...
g6 {[%clk 0:02:40.2]} 20. Nb3 {[%clk 0:01:55.2]} 20... Ba8 {[%clk 0:02:38.6]}
21. c5 {[%clk 0:01:39.2]} 21... dxc5 {[%clk 0:02:37]} 22. Bxa6 {[%clk
0:01:32.2]} 22... Bb7 {[%clk 0:02:22.5]} 23. Bxb7 {[%clk 0:01:30.8]} 23... Qxb7
{[%clk 0:02:22.7]} 24. bxc5 {[%clk 0:01:30.7]} 24... bxc5 {[%clk 0:02:22.7]} 25.
Nbxc5 {[%clk 0:01:28.2]} 25... Nxc5 {[%clk 0:02:22.7]} 26. Nxc5 {[%clk 0:01:28]}
26... Qa8 {[%clk 0:02:22.9]} 27. a4 {[%clk 0:01:24.7]} 27... Be7 {[%clk
0:02:22.9]} 28. Ra1 {[%clk 0:01:18.1]} 28... Rc6 {[%clk 0:02:08.4]} 29. a5
{[%clk 0:01:15]} 29... Rec8 {[%clk 0:02:08.5]} 30. Nd3 {[%clk 0:01:00.9]} 30...
Nd7 {[%clk 0:01:58.5]} 31. Bd4 {[%clk 0:00:44.7]} 31... Rc2 {[%clk 0:01:46.3]}
32. Rd2 {[%clk 0:00:42.3]} 32... R2c4 {[%clk 0:01:46.2]} 33. Rda2 {[%clk
0:00:35.7]} 33... Qa6 {[%clk 0:01:42.5]} 34. Be3 {[%clk 0:00:32.7]} 34... Rc3
{[%clk 0:01:39.5]} 35. Nf4 {[%clk 0:00:30.4]} 35... Rxe3 {[%clk 0:01:36.1]} 36.
Qd2 {[%clk 0:00:09.6]} 36... Bc5 {[%clk 0:01:26.2]} 37. Kh1 {[%clk 0:00:06]}
37... Qd6 {[%clk 0:01:13.8]} 38. Qb2 {[%clk 0:00:01.1]} 38... Bd4 {[%clk
0:01:12.1]} 0-1

[Event "*** SCC Grand Prix: Titled Tuesday Blitz"]
[Site "Chess.com"]
[Date "2020.10.06"]
[Round "5"]
[White "UmarovSabir"]
[Black "Sashadav97"]
[Result "0-1"]
[WhiteElo "2373"]
[BlackElo "2604"]
[TimeControl "180+1"]
[EndTime "10:56:09 PDT"]
[Termination "Sashadav97 won on time"]

1. e4 {[%clk 0:02:56.5]} 1... c5 {[%clk 0:02:59.8]} 2. Nc3 {[%clk 0:02:53.9]}
2... Nc6 {[%clk 0:02:59.4]} 3. g3 {[%clk 0:02:52]} 3... g6 {[%clk 0:02:59.4]} 4.
Bg2 {[%clk 0:02:51.1]} 4... Bg7 {[%clk 0:03:00.1]} 5. Nge2 {[%clk 0:02:49.9]}
5... e6 {[%clk 0:02:55]} 6. d3 {[%clk 0:02:48.7]} 6... Nge7 {[%clk 0:02:55.6]}
7. Be3 {[%clk 0:02:46.1]} 7... Nd4 {[%clk 0:02:55.6]} 8. Qd2 {[%clk 0:02:44.4]}
8... O-O {[%clk 0:02:53]} 9. O-O-O {[%clk 0:02:42.1]} 9... b5 {[%clk 0:02:45.7]}
10. e5 {[%clk 0:02:09.7]} 10... Nec6 {[%clk 0:02:44.5]} 11. f4 {[%clk
0:01:43.8]} 11... Rb8 {[%clk 0:02:33.2]} 12. Ne4 {[%clk 0:01:42.1]} 12... Qb6
{[%clk 0:02:24.6]} 13. c3 {[%clk 0:01:37.6]} 13... Nxe2+ {[%clk 0:02:14.7]} 14.
Qxe2 {[%clk 0:01:37.3]} 14... Qa5 {[%clk 0:02:15.2]} 15. Bxc5 {[%clk 0:00:58.3]}
15... Qxa2 {[%clk 0:02:14.6]} 16. Bxf8 {[%clk 0:00:57.6]} 16... Bxf8 {[%clk
0:02:15.5]} 17. Nf6+ {[%clk 0:00:48.6]} 17... Kh8 {[%clk 0:02:04]} 18. Bxc6
{[%clk 0:00:48.5]} 18... b4 {[%clk 0:01:52]} 19. c4 {[%clk 0:00:31.5]} 19... b3
{[%clk 0:01:48.6]} 20. Be4 {[%clk 0:00:12.3]} 20... Bb4 {[%clk 0:01:08.6]} 21.
d4 {[%clk 0:00:11.9]} 21... Ba6 {[%clk 0:01:09.2]} 22. Bb1 {[%clk 0:00:10.8]}
22... Qa1 {[%clk 0:00:58.4]} 23. Nxd7 {[%clk 0:00:06.9]} 23... Rc8 {[%clk
0:00:54.5]} 24. Nc5 {[%clk 0:00:06.9]} 24... Bc3 {[%clk 0:00:54.9]} 25. f5
{[%clk 0:00:01.4]} 25... Bxc4 {[%clk 0:00:49.1]} 0-1

[Event "*** SCC Grand Prix: Titled Tuesday Blitz"]
[Site "Chess.com"]
[Date "2020.10.06"]
[Round "5"]
[White "hurricane7791"]
[Black "GM_LOADING"]
[Result "0-1"]
[WhiteElo "2690"]
[BlackElo "2516"]
[TimeControl "180+1"]
[EndTime "10:56:14 PDT"]
[Termination "GM_LOADING won by resignation"]

1. d4 {[%clk 0:03:00.9]} 1... Nf6 {[%clk 0:02:59.5]} 2. c4 {[%clk 0:02:59.2]}
2... e6 {[%clk 0:02:59.8]} 3. Nc3 {[%clk 0:02:56.2]} 3... Bb4 {[%clk 0:03:00.3]}
4. Qc2 {[%clk 0:02:55.4]} 4... Nc6 {[%clk 0:03:00]} 5. Nf3 {[%clk 0:02:55]} 5...
d6 {[%clk 0:03:00.3]} 6. Bd2 {[%clk 0:02:55.2]} 6... e5 {[%clk 0:02:59.4]} 7. a3
{[%clk 0:02:50]} 7... Bxc3 {[%clk 0:02:58]} 8. Bxc3 {[%clk 0:02:50.9]} 8... Qe7
{[%clk 0:02:58.3]} 9. d5 {[%clk 0:02:43.8]} 9... Nb8 {[%clk 0:02:57.3]} 10. e3
{[%clk 0:02:44.2]} 10... O-O {[%clk 0:02:54.9]} 11. Be2 {[%clk 0:02:44.5]} 11...
Bg4 {[%clk 0:02:51.5]} 12. O-O {[%clk 0:02:43.6]} 12... a5 {[%clk 0:02:48.4]}
13. b4 {[%clk 0:02:43.3]} 13... Nbd7 {[%clk 0:02:48]} 14. h3 {[%clk 0:02:37.4]}
14... Bh5 {[%clk 0:02:40.1]} 15. e4 {[%clk 0:02:34.5]} 15... Bg6 {[%clk
0:02:09.8]} 16. Bd3 {[%clk 0:02:24.3]} 16... Nh5 {[%clk 0:02:04.1]} 17. Rfe1
{[%clk 0:02:24.1]} 17... Nf4 {[%clk 0:02:01.9]} 18. Bf1 {[%clk 0:02:18.8]} 18...
f5 {[%clk 0:01:59.7]} 19. exf5 {[%clk 0:02:11.8]} 19... Bxf5 {[%clk 0:01:57.3]}
20. Qd2 {[%clk 0:02:09.9]} 20... Qf7 {[%clk 0:01:37.7]} 21. Kh2 {[%clk
0:02:05.7]} 21... Qh5 {[%clk 0:01:31.6]} 22. Ng1 {[%clk 0:02:05.7]} 22... Nf6
{[%clk 0:01:16.5]} 23. f3 {[%clk 0:01:50.2]} 23... Bd7 {[%clk 0:00:54]} 24. g3
{[%clk 0:01:42]} 24... Nxh3 {[%clk 0:00:31.5]} 25. Nxh3 {[%clk 0:00:53.4]} 25...
Qxf3 {[%clk 0:00:31.6]} 26. Qd3 {[%clk 0:00:53.5]} 26... Qh5 {[%clk 0:00:26.1]}
27. bxa5 {[%clk 0:00:34.8]} 27... Bxh3 {[%clk 0:00:22.1]} 28. Bxh3 {[%clk
0:00:32]} 28... Ng4+ {[%clk 0:00:22.4]} 29. Kg2 {[%clk 0:00:32.4]} 29... Rf2+
{[%clk 0:00:22.4]} 30. Kg1 {[%clk 0:00:32.3]} 30... Qxh3 {[%clk 0:00:22.6]} 0-1

[Event "*** SCC Grand Prix: Titled Tuesday Blitz"]
[Site "Chess.com"]
[Date "2020.10.06"]
[Round "5"]
[White "annazero"]
[Black "Nikolaj_6"]
[Result "1-0"]
[WhiteElo "2403"]
[BlackElo "2531"]
[TimeControl "180+1"]
[EndTime "10:56:16 PDT"]
[Termination "annazero won by resignation"]

1. d4 {[%clk 0:03:00.9]} 1... d5 {[%clk 0:02:59.1]} 2. Nf3 {[%clk 0:03:00.7]}
2... Nf6 {[%clk 0:02:58.6]} 3. c4 {[%clk 0:02:57.7]} 3... e6 {[%clk 0:02:58.3]}
4. g3 {[%clk 0:02:56.5]} 4... Be7 {[%clk 0:02:56.3]} 5. Bg2 {[%clk 0:02:56.5]}
5... O-O {[%clk 0:02:56.4]} 6. O-O {[%clk 0:02:56]} 6... dxc4 {[%clk 0:02:56.4]}
7. Ne5 {[%clk 0:02:56.4]} 7... Nc6 {[%clk 0:02:54.1]} 8. Bxc6 {[%clk 0:02:56.8]}
8... bxc6 {[%clk 0:02:55]} 9. Nxc6 {[%clk 0:02:57.4]} 9... Qe8 {[%clk
0:02:55.1]} 10. Nxe7+ {[%clk 0:02:58.3]} 10... Qxe7 {[%clk 0:02:56]} 11. Qa4
{[%clk 0:02:58.5]} 11... c5 {[%clk 0:02:55.1]} 12. Qxc4 {[%clk 0:02:56.4]} 12...
cxd4 {[%clk 0:02:55.2]} 13. Qxd4 {[%clk 0:02:55.5]} 13... e5 {[%clk 0:02:52.8]}
14. Qh4 {[%clk 0:02:51.3]} 14... h6 {[%clk 0:02:47.7]} 15. Nc3 {[%clk
0:02:50.3]} 15... Bb7 {[%clk 0:02:47.9]} 16. e4 {[%clk 0:02:43.9]} 16... Rac8
{[%clk 0:02:39.7]} 17. Be3 {[%clk 0:02:43.5]} 17... Rc4 {[%clk 0:02:26.5]} 18.
f3 {[%clk 0:02:36.9]} 18... Qb4 {[%clk 0:02:05.3]} 19. Rf2 {[%clk 0:02:20]}
19... Rc6 {[%clk 0:01:45.6]} 20. Rd1 {[%clk 0:02:12.6]} 20... Rfc8 {[%clk
0:01:45.5]} 21. Rfd2 {[%clk 0:02:08.1]} 21... Kh7 {[%clk 0:01:40.7]} 22. g4
{[%clk 0:02:06]} 22... Ng8 {[%clk 0:01:30.4]} 23. Qh5 {[%clk 0:02:04]} 23... f6
{[%clk 0:01:21.5]} 24. Qf5+ {[%clk 0:01:56.3]} 24... Kh8 {[%clk 0:01:20.8]} 25.
a3 {[%clk 0:01:28.3]} 25... Qb3 {[%clk 0:01:18.3]} 26. Bxa7 {[%clk 0:01:21.8]}
26... Rxc3 {[%clk 0:01:11.8]} 27. bxc3 {[%clk 0:01:16.4]} 27... Rxc3 {[%clk
0:01:12.3]} 28. Rd7 {[%clk 0:01:12.2]} 28... Bc8 {[%clk 0:01:09]} 29. Qg6 {[%clk
0:01:03.4]} 29... Bxd7 {[%clk 0:00:55]} 30. Rxd7 {[%clk 0:01:03.2]} 30... Qb1+
{[%clk 0:00:36]} 31. Kg2 {[%clk 0:00:59.7]} 31... Rc2+ {[%clk 0:00:33.8]} 32.
Bf2 {[%clk 0:00:57.6]} 32... Rxf2+ {[%clk 0:00:21.8]} 33. Kxf2 {[%clk
0:00:57.7]} 33... Ne7 {[%clk 0:00:22.1]} 34. Rxe7 {[%clk 0:00:44.5]} 34... Qb6+
{[%clk 0:00:22.1]} 35. Kg2 {[%clk 0:00:43.4]} 1-0

[Event "*** SCC Grand Prix: Titled Tuesday Blitz"]
[Site "Chess.com"]
[Date "2020.10.06"]
[Round "5"]
[White "northridgehawk"]
[Black "draksbg"]
[Result "0-1"]
[WhiteElo "2300"]
[BlackElo "2580"]
[TimeControl "180+1"]
[EndTime "10:56:16 PDT"]
[Termination "draksbg won by resignation"]

1. e4 {[%clk 0:02:54.5]} 1... c5 {[%clk 0:02:58.1]} 2. Nf3 {[%clk 0:02:53]} 2...
Nc6 {[%clk 0:02:57.8]} 3. d4 {[%clk 0:02:53.9]} 3... cxd4 {[%clk 0:02:57.4]} 4.
Nxd4 {[%clk 0:02:54.8]} 4... Qc7 {[%clk 0:02:57.7]} 5. Nc3 {[%clk 0:02:54.4]}
5... e6 {[%clk 0:02:57]} 6. f4 {[%clk 0:02:53.3]} 6... a6 {[%clk 0:02:54.5]} 7.
Be3 {[%clk 0:02:51.4]} 7... b5 {[%clk 0:02:52.8]} 8. Qf3 {[%clk 0:02:51.1]} 8...
Bb7 {[%clk 0:02:50.3]} 9. O-O-O {[%clk 0:02:50]} 9... Bb4 {[%clk 0:02:33.9]} 10.
g4 {[%clk 0:02:16]} 10... Nge7 {[%clk 0:02:14.8]} 11. Nde2 {[%clk 0:01:55.4]}
11... Na5 {[%clk 0:02:04.2]} 12. Bd4 {[%clk 0:01:50]} 12... O-O {[%clk 0:02:00]}
13. g5 {[%clk 0:01:48.9]} 13... Nc4 {[%clk 0:01:57.1]} 14. Rg1 {[%clk
0:01:46.8]} 14... Nc6 {[%clk 0:01:38]} 15. Bxg7 {[%clk 0:01:41.8]} 15... Kxg7
{[%clk 0:01:36.7]} 16. Ng3 {[%clk 0:01:42.1]} 16... Kh8 {[%clk 0:01:10.4]} 17.
Nh5 {[%clk 0:01:41]} 17... Rg8 {[%clk 0:01:09]} 18. Nf6 {[%clk 0:01:40.8]} 18...
Rg7 {[%clk 0:01:05.6]} 19. Rxd7 {[%clk 0:01:39.5]} 19... Qb6 {[%clk 0:00:59.6]}
20. Qh5 {[%clk 0:01:35]} 20... Qxg1 {[%clk 0:00:48.7]} 21. Rxf7 {[%clk
0:01:16.4]} 21... Qxf1+ {[%clk 0:00:19.1]} 22. Nd1 {[%clk 0:01:16.4]} 22... Rxf7
{[%clk 0:00:16.1]} 23. c3 {[%clk 0:01:14.3]} 23... Qxf4+ {[%clk 0:00:15.3]} 24.
Kb1 {[%clk 0:01:12.6]} 24... Rxf6 {[%clk 0:00:14.3]} 25. gxf6 {[%clk 0:01:11.9]}
25... Qxf6 {[%clk 0:00:13]} 26. cxb4 {[%clk 0:01:11.9]} 26... N6e5 {[%clk
0:00:12.2]} 27. b3 {[%clk 0:01:10.4]} 27... Bxe4+ {[%clk 0:00:11.1]} 28. Kc1
{[%clk 0:01:10.5]} 28... Rc8 {[%clk 0:00:09.9]} 29. bxc4 {[%clk 0:01:08.8]}
29... Nxc4 {[%clk 0:00:08.8]} 0-1

[Event "*** SCC Grand Prix: Titled Tuesday Blitz"]
[Site "Chess.com"]
[Date "2020.10.06"]
[Round "5"]
[White "mr65"]
[Black "kreonx"]
[Result "1/2-1/2"]
[WhiteElo "2157"]
[BlackElo "2349"]
[TimeControl "180+1"]
[EndTime "10:56:16 PDT"]
[Termination "Game drawn - insufficient material"]

1. e4 {[%clk 0:03:00.9]} 1... c6 {[%clk 0:02:59.2]} 2. Nc3 {[%clk 0:02:59.1]}
2... d5 {[%clk 0:02:58.9]} 3. Nf3 {[%clk 0:02:59]} 3... dxe4 {[%clk 0:02:52.1]}
4. Nxe4 {[%clk 0:02:58.3]} 4... Nf6 {[%clk 0:02:52.7]} 5. Nxf6+ {[%clk
0:02:57.3]} 5... exf6 {[%clk 0:02:53.6]} 6. d4 {[%clk 0:02:56.1]} 6... Bd6
{[%clk 0:02:53.6]} 7. Bd3 {[%clk 0:02:55.2]} 7... Qe7+ {[%clk 0:02:45.5]} 8. Qe2
{[%clk 0:02:53.7]} 8... Qxe2+ {[%clk 0:02:43]} 9. Bxe2 {[%clk 0:02:53.2]} 9...
Bf5 {[%clk 0:02:36]} 10. c4 {[%clk 0:02:50.1]} 10... Bb4+ {[%clk 0:02:28.1]} 11.
Bd2 {[%clk 0:02:47.9]} 11... Bxd2+ {[%clk 0:02:28]} 12. Nxd2 {[%clk 0:02:45.2]}
12... Nd7 {[%clk 0:02:27.4]} 13. O-O {[%clk 0:02:42.5]} 13... O-O-O {[%clk
0:02:26.6]} 14. Nf3 {[%clk 0:02:34.9]} 14... Rhe8 {[%clk 0:02:21]} 15. Rfe1
{[%clk 0:02:34.4]} 15... Nb6 {[%clk 0:02:18.3]} 16. Bf1 {[%clk 0:02:33.4]} 16...
Bg4 {[%clk 0:02:07.3]} 17. Rxe8 {[%clk 0:02:23.6]} 17... Rxe8 {[%clk 0:02:07.9]}
18. Re1 {[%clk 0:02:22.3]} 18... Rd8 {[%clk 0:01:59.9]} 19. Re7 {[%clk
0:02:17.6]} 19... Bxf3 {[%clk 0:01:59.4]} 20. gxf3 {[%clk 0:02:16.2]} 20... Rxd4
{[%clk 0:01:10.3]} 21. Rxf7 {[%clk 0:02:15.4]} 21... Nxc4 {[%clk 0:01:09.7]} 22.
Bxc4 {[%clk 0:02:10.8]} 22... Rxc4 {[%clk 0:01:09.3]} 23. Rxg7 {[%clk
0:02:10.7]} 23... h5 {[%clk 0:01:03]} 24. Rg6 {[%clk 0:02:04.7]} 24... Rf4
{[%clk 0:01:02.7]} 25. Kg2 {[%clk 0:02:02.9]} 25... h4 {[%clk 0:01:03.2]} 26.
Rg4 {[%clk 0:01:58.6]} 26... Rxg4+ {[%clk 0:00:39]} 27. fxg4 {[%clk 0:01:58]}
27... c5 {[%clk 0:00:39.6]} 28. Kf3 {[%clk 0:01:48.9]} 28... Kd7 {[%clk
0:00:39]} 29. Ke4 {[%clk 0:01:48.6]} 29... Ke6 {[%clk 0:00:39]} 30. f4 {[%clk
0:01:43.1]} 30... h3 {[%clk 0:00:38.9]} 31. a4 {[%clk 0:01:31.4]} 31... b6
{[%clk 0:00:37.6]} 32. b3 {[%clk 0:01:29.7]} 32... a6 {[%clk 0:00:37.5]} 33. g5
{[%clk 0:01:09.7]} 33... fxg5 {[%clk 0:00:36.7]} 34. fxg5 {[%clk 0:01:09.4]}
34... b5 {[%clk 0:00:37.3]} 35. a5 {[%clk 0:01:01.8]} 35... c4 {[%clk
0:00:26.5]} 36. bxc4 {[%clk 0:01:00.9]} 36... bxc4 {[%clk 0:00:27.4]} 37. Kd4
{[%clk 0:01:00.8]} 37... Kf5 {[%clk 0:00:28]} 38. Kxc4 {[%clk 0:01:00.8]} 38...
Kxg5 {[%clk 0:00:28.6]} 39. Kc5 {[%clk 0:01:00.8]} 39... Kf4 {[%clk 0:00:29.2]}
40. Kb6 {[%clk 0:01:00.7]} 40... Kf3 {[%clk 0:00:30.1]} 41. Kxa6 {[%clk
0:01:00.7]} 41... Kg2 {[%clk 0:00:30.7]} 42. Kb6 {[%clk 0:00:59.9]} 42... Kxh2
{[%clk 0:00:31.2]} 43. a6 {[%clk 0:00:59.9]} 43... Kg1 {[%clk 0:00:31.8]} 44. a7
{[%clk 0:00:59.8]} 44... h2 {[%clk 0:00:32.4]} 45. a8=Q {[%clk 0:00:59]} 45...
h1=Q {[%clk 0:00:33.3]} 46. Qxh1+ {[%clk 0:00:57.9]} 46... Kxh1 {[%clk
0:00:34.2]} 1/2-1/2